[Event "FIDE Zonal 2.5 Open 2019"]
[Site "Montevideo"]
[Date "2019.04.19"]
[Round "9.1"]
[White "Henriquez Villagra, Cristobal"]
[Black "Rodriguez Vila, Andres"]
[Result "1-0"]
[ECO "E71"]
[WhiteElo "2543"]
[BlackElo "2480"]
[Annotator "ChessBase"]
[PlyCount "99"]
[EventDate "2019.04.13"]
[EventType "swiss"]
[EventCountry "URU"]
[SourceTitle "playchess.com"]
[Source "ChessBase"]
[SourceQuality "1"]
[TimeControl "40/5400+30:1800+30"]

1. d4 {[%emt 0:05:16]} Nf6 {[%emt 0:00:00]} 2. c4 {[%emt 0:00:22]} g6 {[%emt 0:00:00]} 3. Nc3 {[%emt 0:00:05]} Bg7 {[%emt 0:00:00]} 4. e4 {[%emt 0:00:28]} d6 {[%emt 0:00:01]} 5. h3 {[%emt 0:00:04]} Nbd7 {[%emt 0:02:58]} 6. Be3 {[%emt 0:00:14]} e5 {[%emt 0:00:10]} 7. d5 {[%emt 0:00:04]} Nc5 {[%emt 0:00:11]} 8. Qc2 {[%emt 0:01:03]} O-O {[%emt 0:04:41]} 9. g4 {[%emt 0:00:38]} c6 {[%emt 0:03:58]} 10. Nge2 {[%emt 0:04:38]} cxd5 {[%emt 0:04:44]} 11. cxd5 {[%emt 0:00:04]} Qa5 {[%emt 0:04:25]} 12. Ng3 {[%emt 0:02:25]} Bd7 {[%emt 0:03:58]} 13. Rb1 {[%emt 0:00:27]} Na4 {[%emt 0:14:54]} 14. Qd2 {[%emt 0:00:12]} Rfc8 {[%emt 0:09:25]} 15. Nb5 {[%emt 0:12:02]} Qxd2+ {[%emt 0:00:42]} 16. Kxd2 {[%emt 0:00:04]} Bf8 {[%emt 0:16:00]} 17. g5 {[%emt 0:03:41]} Ne8 {[%emt 0:02:51]} 18. Nxa7 {[%emt 0:05:58]} Rcb8 {[%emt 0:00:50]} 19. Bb5 {[%emt 0:09:51]} Nc5 {[%emt 0:01:25]} 20. Bxd7 {[%emt 0:10:55]} Nxd7 {[%emt 0:02:16]} 21. Nb5 {[%emt 0:00:55]} Be7 {[%emt 0:12:43]} 22. Ra1 {[%emt 0:02:40]} Nc5 {[%emt 0:01:59]} 23. b4 {[%emt 0:00:42]} Na4 {[%emt 0:01:32]} 24. Kc2 {[%emt 0:01:21]} Ra6 {[%emt 0:03:42]} 25. Kb3 {[%emt 0:01:05]} Bd8 {[%emt 0:00:14]} 26. Rhc1 {[%emt 0:00:42]} Rba8 {[%emt 0:01:51]} 27. Rc2 {[%emt 0:02:00]} Kf8 {[%emt 0:00:56]} 28. Rf1 {[%emt 0:07:48]} Bb6 {[%emt 0:01:47]} 29. Bc1 {[%emt 0:00:06]} Bd8 {[%emt 0:01:17]} 30. Ne2 {[%emt 0:00:51]} Nb6 {[%emt 0:01:31]} 31. f4 {[%emt 0:02:59]} exf4 {[%emt 0:00:12]} 32. Bxf4 {[%emt 0:00:06]} Nd7 {[%emt 0:00:13]} 33. Nec3 {[%emt 0:01:28]} Kg8 {[%emt 0:01:01]} 34. h4 {[%emt 0:00:11]} f6 {[%emt 0:02:14]} 35. a4 {[%emt 0:00:12]} fxg5 {[%emt 0:01:18]} 36. hxg5 {[%emt 0:00:13]} Be7 {[%emt 0:00:32]} 37. Rcf2 {[%emt 0:01:16]} Rc8 {[%emt 0:00:08]} 38. Nd4 {[%emt 0:02:05]} Ng7 {[%emt 0:00:20]} 39. Ne6 {[%emt 0:00:22]} Rb6 {[%emt 0:01:48]} 40. Be3 {[%emt 0:02:35]} Nxe6 {[%emt 0:00:34]} 41. dxe6 {[%emt 0:33:43]} Nc5+ {[%emt 0:00:41]} 42. Ka3 {[%emt 0:00:00]} Ra8 {[%emt 0:16:57]} 43. bxc5 {[%emt 0:00:00]} dxc5 {[%emt 0:00:06]} 44. Nd5 {[%emt 0:00:00]} Rxe6 {[%emt 0:00:06]} 45. Nxe7+ {[%emt 0:00:00]} Rxe7 {[%emt 0:00:02]} 46. Bxc5 {[%emt 0:00:00]} Ree8 {[%emt 0:00:03]} 47. e5 {[%emt 0:00:00]} b5 {[%emt 0:01:08]} 48. Rf8+ {[%emt 0:00:00]} Rxf8 {[%emt 0:00:13]} 49. Rxf8+ {[%emt 0:00:00]} Rxf8 {[%emt 0:00:04]} 50. Bxf8 {[%emt 0:00:00]} 1-0

[Event "FIDE Zonal 2.5 Open 2019"]
[Site "Montevideo"]
[Date "2019.04.19"]
[Round "9.3"]
[White "Salinas Herrera, Pablo"]
[Black "Pichot, Alan"]
[Result "1/2-1/2"]
[ECO "E21"]
[WhiteElo "2483"]
[BlackElo "2566"]
[Annotator "RC"]
[PlyCount "118"]
[EventDate "2019.04.13"]
[EventType "swiss"]
[EventCountry "URU"]
[SourceTitle "playchess.com"]
[Source "ChessBase"]
[SourceQuality "1"]
[TimeControl "40/5400+30:1800+30"]

1. d4 {[%emt 0:04:59]} Nf6 {[%emt 0:00:00]} 2. c4 {[%emt 0:00:12]} e6 {[%emt 0:00:00]} 3. Nc3 {[%emt 0:00:17]} Bb4 {[%emt 0:00:00]} 4. Nf3 {[%emt 0:00:05]} b6 {[%emt 0:00:32]} 5. Bd2 {[%emt 0:00:05]} Bb7 {[%emt 0:00:14]} 6. e3 {[%emt 0:00:06]} O-O {[%emt 0:00:30]} 7. Bd3 {[%emt 0:00:05]} d6 {[%emt 0:00:57]} 8. O-O {[%emt 0:00:16]} Nbd7 {[%emt 0:00:05]} 9. a3 {[%emt 0:19:49]} Bxc3 {[%emt 0:00:17]} 10. Bxc3 {[%emt 0:00:26]} Ne4 {[%emt 0:00:09]} 11. Be1 {[%emt 0:01:31]} f5 {[%emt 0:01:34]} 12. Qe2 {[%emt 0:01:04]} Qf6 {[%emt 0:01:31]} 13. Nd2 {[%emt 0:02:58]} Ng5 {[%emt 0:03:26]} 14. f3 {[%emt 0:12:01]} a5 {[%emt 0:24:19]} 15. Nb1 {[%emt 0:04:40]} c5 {[%emt 0:06:44]} 16. Bf2 {[%emt 0:05:49]} e5 {[%emt 0:16:06]} 17. h4 {[%emt 0:01:38]} Nf7 {[%emt 0:04:10]} 18. d5 {[%emt 0:00:07]} Nh8 {[%emt 0:02:30]} 19. Nc3 {[%emt 0:01:11]} Ng6 {[%emt 0:00:21]} 20. g3 {[%emt 0:04:50]} Ba6 {[%emt 0:03:40]} 21. Bc2 {[%emt 0:01:08]} e4 {[%emt 0:05:55]} 22. f4 {[%emt 0:00:05]} Ne7 {[%emt 0:05:45]} 23. g4 {[%emt 0:04:43]} Qg6 {[%emt 0:02:06]} 24. g5 {[%emt 0:08:18]} Nf6 {[%emt 0:01:51]} 25. h5 {[%emt 0:01:52]} Qxh5 {[%emt 0:04:35]} 26. gxf6 {[%emt 0:02:07]} Qxe2 {[%emt 0:00:14]} 27. Nxe2 {[%emt 0:00:05]} Rxf6 {[%emt 0:00:04]} 28. b3 {[%emt 0:00:41]} Rg6+ {[%emt 0:03:55]} 29. Ng3 {[%emt 0:01:20]} b5 {[%emt 0:00:35]} 30. Rfc1 {[%emt 0:01:40]} bxc4 {[%emt 0:08:04]} 31. bxc4 {[%emt 0:00:04]} Bxc4 {[%emt 0:01:57]} 32. Bxe4 {[%emt 0:00:11]} fxe4 {[%emt 0:00:28]} 33. Rxc4 {[%emt 0:00:04]} Nxd5 {[%emt 0:00:50]} 34. Rxe4 {[%emt 0:01:20]} Rb8 {[%emt 0:00:01]} 35. Kf1 {[%emt 0:00:53]} Rb2 {[%emt 0:00:59]} 36. f5 {[%emt 0:01:57]} Rh6 {[%emt 0:00:36]} 37. Re6 {[%emt 0:01:34]} Rh2 {[%emt 0:01:13]} 38. Bg1 {[%emt 0:02:41]} Rh3 {[%emt 0:00:00]} 39. Ne2 {[%emt 0:00:53]} Nf6 {[%emt 0:02:22]} 40. Rxd6 {[%emt 0:00:58]} Rf3+ {[%emt 0:00:51]} 41. Ke1 {[%emt 0:30:05]} Rxf5 {[%emt 0:02:02]} 42. Rd2 {[%emt 0:00:00]} Rf1+ {[%emt 0:02:11]} 43. Kxf1 {[%emt 0:00:00]} Rxd2 {[%emt 0:00:03]} 44. Rc1 {[%emt 0:00:00]} Ra2 {[%emt 0:02:46]} 45. Rxc5 {[%emt 0:00:00]} Rxa3 {[%emt 0:00:15]} 46. Kg2 {[%emt 0:00:00]} a4 {[%emt 0:01:19]} 47. Kf3 {[%emt 0:00:00]} Ra1 {[%emt 0:00:39]} 48. Ra5 {[%emt 0:00:00]} a3 {[%emt 0:04:05]} 49. Bf2 {[%emt 0:00:00]} h5 {[%emt 0:01:20]} 50. Nc3 {[%emt 0:00:00]} Kf7 {[%emt 0:02:06]} 51. Nb5 {[%emt 0:00:00]} g5 {[%emt 0:02:53]} 52. Rxa3 {[%emt 0:00:00]} g4+ {[%emt 0:03:06]} 53. Kg2 {[%emt 0:00:00]} Rxa3 {[%emt 0:01:11]} 54. Nxa3 {[%emt 0:00:00]} Ke6 {[%emt 0:00:12]} 55. Nb5 {[%emt 0:00:00]} Kd5 {[%emt 0:01:35]} 56. Bh4 {[%emt 0:03:01]} Ne4 {[%emt 0:01:37]} 57. Na3 {[%emt 0:00:10]} Nd6 {[%emt 0:00:38]} 58. Nb1 {[%emt 0:01:41]} Ke4 {[%emt 0:00:48]} 59. Bf2 {[%emt 0:00:17]} Kd3 {[%emt 0:00:53]} 1/2-1/2

[Event "FIDE Zonal 2.5 Open 2019"]
[Site "Montevideo"]
[Date "2019.04.19"]
[Round "9.4"]
[White "Roselli Mailhe, Bernardo"]
[Black "Peralta, Fernando"]
[Result "1/2-1/2"]
[ECO "E11"]
[WhiteElo "2454"]
[BlackElo "2572"]
[Annotator "ChessBase"]
[PlyCount "110"]
[EventDate "2019.04.13"]
[EventType "swiss"]
[EventCountry "URU"]
[SourceTitle "playchess.com"]
[Source "ChessBase"]
[SourceQuality "1"]
[TimeControl "40/5400+30:1800+30"]

1. d4 {[%emt 0:00:00]} Nf6 {[%emt 0:00:00]} 2. c4 {[%emt 0:00:00]} e6 {[%emt 0:00:00]} 3. Nf3 {[%emt 0:00:05]} Bb4+ {[%emt 0:00:09]} 4. Nbd2 {[%emt 0:00:08]} O-O {[%emt 0:00:16]} 5. a3 {[%emt 0:00:04]} Be7 {[%emt 0:00:05]} 6. e4 {[%emt 0:00:09]} d6 {[%emt 0:00:10]} 7. Bd3 {[%emt 0:01:37]} e5 {[%emt 0:00:24]} 8. d5 {[%emt 0:01:11]} a5 {[%emt 0:07:38]} 9. b3 {[%emt 0:04:21]} Na6 {[%emt 0:05:39]} 10. Bb2 {[%emt 0:05:29]} Nh5 {[%emt 0:09:10]} 11. g3 {[%emt 0:01:01]} g6 {[%emt 0:00:09]} 12. O-O {[%emt 0:01:35]} Ng7 {[%emt 0:02:14]} 13. Ne1 {[%emt 0:02:54]} Bh3 {[%emt 0:09:55]} 14. Ng2 {[%emt 0:00:08]} f5 {[%emt 0:00:46]} 15. exf5 {[%emt 0:05:19]} gxf5 {[%emt 0:01:03]} 16. f4 {[%emt 0:04:00]} e4 {[%emt 0:02:55]} 17. Be2 {[%emt 0:03:26]} Bf6 {[%emt 0:00:22]} 18. Qc2 {[%emt 0:00:22]} c5 {[%emt 0:02:27]} 19. Rfd1 {[%emt 0:03:55]} Bd4+ {[%emt 0:07:11]} 20. Kh1 {[%emt 0:00:41]} Qf6 {[%emt 0:00:11]} 21. Rab1 {[%emt 0:00:05]} Bxg2+ {[%emt 0:11:12]} 22. Kxg2 {[%emt 0:00:06]} Nc7 {[%emt 0:00:04]} 23. Nf1 {[%emt 0:01:33]} Rfb8 {[%emt 0:00:09]} 24. Bxd4 {[%emt 0:12:25]} cxd4 {[%emt 0:00:19]} 25. Qb2 {[%emt 0:00:08]} b5 {[%emt 0:03:31]} 26. Qxd4 {[%emt 0:00:17]} Qxd4 {[%emt 0:00:24]} 27. Rxd4 {[%emt 0:00:06]} b4 {[%emt 0:03:08]} 28. a4 {[%emt 0:01:48]} Na6 {[%emt 0:00:11]} 29. Ne3 {[%emt 0:09:54]} h5 {[%emt 0:01:37]} 30. Kf2 {[%emt 0:00:28]} Nc5 {[%emt 0:00:18]} 31. Rdd1 {[%emt 0:00:13]} Kf7 {[%emt 0:00:21]} 32. Rg1 {[%emt 0:13:23]} Rh8 {[%emt 0:00:52]} 33. Ng2 {[%emt 0:01:21]} Rh6 {[%emt 0:01:14]} 34. Ke3 {[%emt 0:00:55]} Rah8 {[%emt 0:03:23]} 35. Ne1 {[%emt 0:01:01]} Ne8 {[%emt 0:12:09]} 36. Nc2 {[%emt 0:00:42]} Nf6 {[%emt 0:00:48]} 37. h3 {[%emt 0:02:25]} Ng8 {[%emt 0:00:31]} 38. Nd4 {[%emt 0:03:15]} Ne7 {[%emt 0:00:20]} 39. Rg2 {[%emt 0:04:40]} Ke8 {[%emt 0:02:00]} 40. Rbg1 {[%emt 0:03:28]} Kf7 {[%emt 0:03:21]} 41. Kd2 {[%emt 0:32:40]} R8h7 {[%emt 0:32:24]} 42. Kc2 {[%emt 0:00:06]} Kf6 {[%emt 0:02:19]} 43. Nb5 {[%emt 0:04:06]} Nb7 {[%emt 0:00:00]} 44. Kd2 {[%emt 0:00:00]} Rh8 {[%emt 0:00:00]} 45. Ke3 {[%emt 0:00:00]} R6h7 {[%emt 0:00:00]} 46. Bd1 {[%emt 0:00:00]} Rh6 {[%emt 0:00:00]} 47. Bc2 {[%emt 0:00:00]} R6h7 {[%emt 0:00:00]} 48. Kd2 {[%emt 0:00:00]} Rh6 {[%emt 0:00:00]} 49. Re1 {[%emt 0:00:00]} R6h7 {[%emt 0:00:00]} 50. Ree2 {[%emt 0:00:00]} Rg7 {[%emt 0:00:00]} 51. Re1 {[%emt 0:00:00]} Rhg8 {[%emt 0:03:05]} 52. Re3 {[%emt 0:00:00]} Ng6 {[%emt 0:01:00]} 53. Rf2 {[%emt 0:00:00]} Ne7 {[%emt 0:00:23]} 54. Rg2 {[%emt 0:00:00]} Ng6 {[%emt 0:00:11]} 55. Rf2 {[%emt 0:00:00]} Ne7 1/2-1/2

[Event "FIDE Zonal 2.5 Open 2019"]
[Site "Montevideo"]
[Date "2019.04.19"]
[Round "9.7"]
[White "Donoso Diaz, Sebastian"]
[Black "Tristan, Leonardo"]
[Result "0-1"]
[ECO "E06"]
[WhiteElo "2191"]
[BlackElo "2504"]
[Annotator "ChessBase"]
[PlyCount "60"]
[EventDate "2019.04.13"]
[EventType "swiss"]
[EventCountry "URU"]
[SourceTitle "playchess.com"]
[Source "ChessBase"]
[SourceQuality "1"]
[TimeControl "40/5400+30:1800+30"]

1. Nf3 {[%emt 0:05:10]} d5 {[%emt 0:00:00]} 2. d4 {[%emt 0:00:55]} Nf6 {[%emt 0:00:00]} 3. c4 {[%emt 0:00:27]} e6 {[%emt 0:00:00]} 4. g3 {[%emt 0:00:24]} Be7 {[%emt 0:00:00]} 5. Bg2 {[%emt 0:00:05]} O-O {[%emt 0:00:07]} 6. O-O {[%emt 0:00:09]} dxc4 {[%emt 0:00:05]} 7. Qc2 {[%emt 0:00:26]} a6 {[%emt 0:00:09]} 8. a4 {[%emt 0:00:15]} Bd7 {[%emt 0:02:11]} 9. Qxc4 {[%emt 0:00:45]} Bc6 {[%emt 0:00:06]} 10. Bg5 {[%emt 0:01:53]} a5 {[%emt 0:08:21]} 11. Nc3 {[%emt 0:10:46]} Ra6 {[%emt 0:05:30]} 12. Bxf6 {[%emt 0:29:20]} Bxf6 {[%emt 0:00:11]} 13. e4 {[%emt 0:01:13]} Rb6 {[%emt 0:04:17]} 14. Qe2 {[%emt 0:00:55]} Bxd4 {[%emt 0:08:17]} 15. Nb5 {[%emt 0:18:57]} Bc5 {[%emt 0:07:27]} 16. e5 {[%emt 0:06:03]} Qd7 {[%emt 0:10:03]} 17. Rfc1 {[%emt 0:04:53]} Na6 {[%emt 0:02:51]} 18. Rc2 {[%emt 0:00:58]} Be7 {[%emt 0:08:22]} 19. Rd1 {[%emt 0:06:42]} Bxb5 {[%emt 0:13:40]} 20. Rxd7 {[%emt 0:00:18]} Bxe2 {[%emt 0:00:04]} 21. Rxe2 {[%emt 0:00:08]} Rd8 {[%emt 0:00:14]} 22. Rxd8+ {[%emt 0:01:47]} Bxd8 {[%emt 0:00:04]} 23. Rc2 {[%emt 0:04:35]} c6 {[%emt 0:18:53]} 24. Nd2 {[%emt 0:01:22]} Nb4 {[%emt 0:00:04]} 25. Rc3 {[%emt 0:00:13]} Nd5 {[%emt 0:02:19]} 26. Rc2 {[%emt 0:00:50]} Rb4 {[%emt 0:01:28]} 27. b3 {[%emt 0:02:28]} Bc7 {[%emt 0:00:39]} 28. Rc5 {[%emt 0:00:24]} Rd4 {[%emt 0:01:27]} 29. Nc4 {[%emt 0:01:17]} Rd1+ {[%emt 0:00:07]} 30. Bf1 {[%emt 0:00:04]} Rc1 {[%emt 0:00:07]} 0-1

[Event "FIDE Zonal 2.5 Open 2019"]
[Site "Montevideo"]
[Date "2019.04.19"]
[Round "9.9"]
[White "Real De Azua, Ernesto"]
[Black "Lopez Azambuja, Nicolas"]
[Result "1/2-1/2"]
[ECO "E20"]
[WhiteElo "2474"]
[BlackElo "2328"]
[Annotator "ChessBase"]
[PlyCount "85"]
[EventDate "2019.04.13"]
[EventType "swiss"]
[EventCountry "URU"]
[SourceTitle "playchess.com"]
[Source "ChessBase"]
[SourceQuality "1"]
[TimeControl "40/5400+30:1800+30"]

1. d4 {[%emt 0:02:00]} Nf6 {[%emt 0:00:00]} 2. c4 {[%emt 0:00:06]} e6 {[%emt 0:00:00]} 3. Nc3 {[%emt 0:00:06]} Bb4 {[%emt 0:00:00]} 4. g3 {[%emt 0:00:03]} Bxc3+ {[%emt 0:01:04]} 5. bxc3 {[%emt 0:00:06]} d6 {[%emt 0:00:43]} 6. Bg2 {[%emt 0:00:13]} O-O {[%emt 0:01:30]} 7. Nf3 {[%emt 0:01:30]} Nc6 {[%emt 0:01:11]} 8. O-O {[%emt 0:00:14]} e5 {[%emt 0:01:15]} 9. dxe5 {[%emt 0:04:14]} Nxe5 {[%emt 0:16:11]} 10. Nxe5 {[%emt 0:05:29]} dxe5 {[%emt 0:00:07]} 11. Qb3 {[%emt 0:00:03]} Re8 {[%emt 0:08:24]} 12. Rd1 {[%emt 0:14:18]} Qe7 {[%emt 0:02:00]} 13. h3 {[%emt 0:00:06]} Rb8 {[%emt 0:16:57]} 14. Qa4 {[%emt 0:09:52]} a6 {[%emt 0:04:05]} 15. Bg5 {[%emt 0:12:38]} Be6 {[%emt 0:06:02]} 16. Rab1 {[%emt 0:05:21]} c6 {[%emt 0:01:23]} 17. Qb4 {[%emt 0:13:49]} Qxb4 {[%emt 0:15:41]} 18. Rxb4 {[%emt 0:00:06]} a5 {[%emt 0:00:37]} 19. Ra4 {[%emt 0:00:40]} Ra8 {[%emt 0:02:28]} 20. Bxf6 {[%emt 0:07:21]} gxf6 {[%emt 0:00:09]} 21. c5 {[%emt 0:00:04]} f5 {[%emt 0:07:48]} 22. g4 {[%emt 0:06:30]} Kg7 {[%emt 0:03:09]} 23. Rd3 {[%emt 0:02:54]} fxg4 {[%emt 0:02:44]} 24. hxg4 {[%emt 0:00:07]} Red8 {[%emt 0:00:35]} 25. Be4 {[%emt 0:03:51]} Rxd3 {[%emt 0:01:29]} 26. Bxd3 {[%emt 0:01:41]} h6 {[%emt 0:01:25]} 27. f3 {[%emt 0:00:06]} Kf6 {[%emt 0:00:27]} 28. Kf2 {[%emt 0:00:04]} Kg5 {[%emt 0:00:55]} 29. Ke3 {[%emt 0:01:31]} Kf6 {[%emt 0:00:40]} 30. Ra3 {[%emt 0:01:17]} Bd5 {[%emt 0:01:28]} 31. c4 {[%emt 0:00:44]} Be6 {[%emt 0:00:03]} 32. Rb3 {[%emt 0:00:03]} Bc8 {[%emt 0:00:39]} 33. a4 {[%emt 0:03:07]} Rb8 {[%emt 0:01:09]} 34. Be4 {[%emt 0:01:43]} Bd7 {[%emt 0:00:04]} 35. Rb1 {[%emt 0:00:31]} Kg7 {[%emt 0:01:14]} 36. Kd2 {[%emt 0:02:28]} Rd8 {[%emt 0:01:29]} 37. Kc3 {[%emt 0:01:32]} Bc8 {[%emt 0:00:04]} 38. Rh1 {[%emt 0:00:35]} Be6 {[%emt 0:00:30]} 39. Bd3 {[%emt 0:00:44]} Bc8 {[%emt 0:00:45]} 40. Rh5 {[%emt 0:00:58]} f6 {[%emt 0:01:35]} 41. Rh1 {[%emt 0:30:07]} Be6 {[%emt 0:31:32]} 42. Rb1 {[%emt 0:00:00]} Bc8 {[%emt 0:00:00]} 43. Rh1 {[%emt 0:00:00]} 1/2-1/2

[Event "FIDE Zonal 2.5 Open 2019"]
[Site "Montevideo"]
[Date "2019.04.19"]
[Round "9.10"]
[White "Suarez, Pedro"]
[Black "Michailov, Matias"]
[Result "0-1"]
[ECO "E63"]
[WhiteElo "2019"]
[BlackElo "2264"]
[Annotator "NA"]
[PlyCount "74"]
[EventDate "2019.04.13"]
[EventType "swiss"]
[EventCountry "URU"]
[SourceTitle "playchess.com"]
[Source "ChessBase"]
[SourceQuality "1"]
[TimeControl "40/5400+30:1800+30"]

1. d4 {[%emt 0:00:00]} Nf6 {[%emt 0:02:52]} 2. Nf3 {[%emt 0:01:02]} g6 {[%emt 0:00:53]} 3. g3 {[%emt 0:00:31]} Bg7 {[%emt 0:00:11]} 4. Bg2 {[%emt 0:00:05]} O-O {[%emt 0:00:06]} 5. O-O {[%emt 0:00:04]} d6 {[%emt 0:01:14]} 6. c4 {[%emt 0:01:00]} Nc6 {[%emt 0:05:39]} 7. Nc3 {[%emt 0:02:07]} a6 {[%emt 0:00:07]} 8. e4 {[%emt 0:03:11]} Bg4 {[%emt 0:02:03]} 9. Be3 {[%emt 0:02:14]} Nd7 {[%emt 0:02:14]} 10. Ne2 {[%emt 0:03:47]} Na5 {[%emt 0:11:11]} 11. Rc1 {[%emt 0:06:29]} c5 {[%emt 0:01:02]} 12. h3 {[%emt 0:01:41]} Bxf3 {[%emt 0:00:19]} 13. Bxf3 {[%emt 0:00:02]} Nc6 {[%emt 0:11:49]} 14. Bg2 {[%emt 0:06:48]} Qc7 {[%emt 0:09:48]} 15. d5 {[%emt 0:04:57]} Na5 {[%emt 0:00:37]} 16. Qd2 {[%emt 0:00:32]} b5 {[%emt 0:01:46]} 17. cxb5 {[%emt 0:01:01]} axb5 {[%emt 0:00:06]} 18. b3 {[%emt 0:01:17]} Qb8 {[%emt 0:09:30]} 19. h4 {[%emt 0:01:33]} Ne5 {[%emt 0:02:38]} 20. Bg5 {[%emt 0:01:57]} c4 {[%emt 0:07:21]} 21. b4 {[%emt 0:02:39]} Nb7 {[%emt 0:00:13]} 22. Nd4 {[%emt 0:00:12]} Qe8 {[%emt 0:08:43]} 23. Rb1 {[%emt 0:03:07]} Ra3 {[%emt 0:03:05]} 24. Qe2 {[%emt 0:01:37]} Qd7 {[%emt 0:03:19]} 25. h5 {[%emt 0:02:08]} Rfa8 {[%emt 0:02:09]} 26. h6 {[%emt 0:01:49]} Rxa2 {[%emt 0:03:08]} 27. Qd1 {[%emt 0:00:56]} Bf6 {[%emt 0:01:26]} 28. Bxf6 {[%emt 0:01:21]} exf6 {[%emt 0:00:05]} 29. Kh2 {[%emt 0:00:55]} Ng4+ {[%emt 0:01:43]} 30. Kg1 {[%emt 0:00:02]} Nxh6 {[%emt 0:00:20]} 31. Qf3 {[%emt 0:00:24]} Kg7 {[%emt 0:00:31]} 32. Qf4 {[%emt 0:00:52]} R8a3 {[%emt 0:01:04]} 33. Qh4 {[%emt 0:05:09]} Rd3 {[%emt 0:01:03]} 34. Rbd1 {[%emt 0:02:36]} Rad2 {[%emt 0:02:46]} 35. Rxd2 {[%emt 0:00:02]} Rxd2 {[%emt 0:00:07]} 36. Nf3 {[%emt 0:01:30]} Rb2 {[%emt 0:00:51]} 37. Bh3 {[%emt 0:00:41]} Qe8 {[%emt 0:01:21]} 0-1

[Event "FIDE Zonal 2.5 Open 2019"]
[Site "Montevideo"]
[Date "2019.04.19"]
[Round "9.11"]
[White "Carbone, Diego"]
[Black "Belmes, Martin"]
[Result "1-0"]
[ECO "A40"]
[WhiteElo "2277"]
[BlackElo "2081"]
[Annotator "NA"]
[PlyCount "115"]
[EventDate "2019.04.13"]
[EventType "swiss"]
[EventCountry "URU"]
[SourceTitle "playchess.com"]
[Source "ChessBase"]
[SourceQuality "1"]
[TimeControl "40/5400+30:1800+30"]

1. d4 {[%emt 0:01:35]} e6 {[%emt 0:00:06]} 2. c4 {[%emt 0:01:33]} Nf6 {[%emt 0:00:11]} 3. g3 {[%emt 0:01:54]} d5 {[%emt 0:00:38]} 4. Nf3 {[%emt 0:00:29]} Bb4+ {[%emt 0:00:16]} 5. Bd2 {[%emt 0:00:07]} Be7 {[%emt 0:00:05]} 6. Bg2 O-O {[%emt 0:00:21]} 7. O-O {[%emt 0:00:27]} Nbd7 {[%emt 0:00:12]} 8. Qc2 {[%emt 0:00:21]} c6 {[%emt 0:00:20]} 9. Bf4 {[%emt 0:00:31]} b6 {[%emt 0:02:40]} 10. Rd1 {[%emt 0:01:34]} Bb7 {[%emt 0:00:14]} 11. Nbd2 {[%emt 0:02:08]} Nh5 {[%emt 0:06:23]} 12. Ne5 {[%emt 0:12:29]} Nxe5 {[%emt 0:04:14]} 13. dxe5 {[%emt 0:02:08]} f5 {[%emt 0:03:43]} 14. exf6 {[%emt 0:03:32]} Bxf6 {[%emt 0:00:49]} 15. Be3 {[%emt 0:01:43]} g6 {[%emt 0:01:07]} 16. g4 {[%emt 0:18:56]} Ng7 {[%emt 0:00:18]} 17. Ne4 {[%emt 0:00:26]} Be7 {[%emt 0:03:13]} 18. Bh6 {[%emt 0:15:24]} Qb8 {[%emt 0:10:01]} 19. Qc3 {[%emt 0:09:52]} Rf7 {[%emt 0:00:21]} 20. Ng5 {[%emt 0:02:01]} Bf6 {[%emt 0:02:11]} 21. Qe3 {[%emt 0:01:33]} d4 {[%emt 0:00:30]} 22. Qd2 {[%emt 0:11:03]} Bxg5 {[%emt 0:01:34]} 23. Qxg5 {[%emt 0:00:14]} c5 {[%emt 0:00:07]} 24. Bxb7 {[%emt 0:01:50]} Qxb7 {[%emt 0:00:04]} 25. Qe5 {[%emt 0:00:24]} Re8 {[%emt 0:01:00]} 26. b4 {[%emt 0:00:11]} Qe7 {[%emt 0:00:32]} 27. Bg5 {[%emt 0:00:34]} Qc7 {[%emt 0:00:39]} 28. Bf4 {[%emt 0:00:23]} Qc6 {[%emt 0:01:56]} 29. f3 {[%emt 0:01:07]} Rd8 {[%emt 0:03:25]} 30. b5 {[%emt 0:02:54]} Qb7 {[%emt 0:00:44]} 31. a4 {[%emt 0:00:07]} a5 {[%emt 0:02:27]} 32. Rd3 {[%emt 0:00:20]} Qc8 {[%emt 0:00:54]} 33. Qg5 {[%emt 0:00:56]} Re8 {[%emt 0:02:10]} 34. Be5 {[%emt 0:00:37]} Qd8 {[%emt 0:02:15]} 35. Qh6 {[%emt 0:00:27]} Qe7 {[%emt 0:03:34]} 36. Kg2 {[%emt 0:00:50]} Ref8 {[%emt 0:01:14]} 37. h4 {[%emt 0:00:41]} Re8 {[%emt 0:00:59]} 38. Rh1 {[%emt 0:02:16]} Ref8 {[%emt 0:00:19]} 39. Rh3 {[%emt 0:02:03]} Ne8 {[%emt 0:00:28]} 40. Rg3 {[%emt 0:01:30]} Ng7 {[%emt 0:02:00]} 41. Kf1 {[%emt 0:05:13]} Rc8 {[%emt 0:04:25]} 42. Ke1 {[%emt 0:00:45]} Rcf8 {[%emt 0:01:40]} 43. Kd1 {[%emt 0:01:12]} Ne8 {[%emt 0:01:19]} 44. Kc2 {[%emt 0:01:04]} Ng7 {[%emt 0:01:00]} 45. Kb3 {[%emt 0:00:05]} Ne8 {[%emt 0:02:32]} 46. Rh3 {[%emt 0:07:11]} Ng7 {[%emt 0:00:27]} 47. f4 {[%emt 0:00:42]} Ne8 {[%emt 0:07:01]} 48. h5 {[%emt 0:02:47]} g5 {[%emt 0:00:15]} 49. fxg5 {[%emt 0:00:29]} Rf1 {[%emt 0:00:16]} 50. g6 {[%emt 0:01:11]} Rb1+ {[%emt 0:00:25]} 51. Ka2 {[%emt 0:00:29]} Rff1 {[%emt 0:00:04]} 52. gxh7+ {[%emt 0:03:45]} Qxh7 {[%emt 0:00:07]} 53. Qxe6+ {[%emt 0:00:10]} Qf7 {[%emt 0:00:43]} 54. Qxf7+ {[%emt 0:00:27]} Kxf7 {[%emt 0:00:04]} 55. Rdf3+ {[%emt 0:00:06]} Ke6 {[%emt 0:00:06]} 56. Rxf1 {[%emt 0:01:27]} Rxf1 {[%emt 0:00:04]} 57. h6 {[%emt 0:00:28]} Rf2 {[%emt 0:01:21]} 58. h7 {[%emt 0:01:12] Kd5} 1-0